bitfinex/quotes_SOLUSD_20240809
["timestamp","ask_amount","ask_price","bid_price","bid_amount"]
[1723196641746,45.0,157.54,157.51,15.871]
[1723196642842,45.0,157.54,157.51,22.2197]
[1723196644411,45.0,157.54,157.52,6.3483]
[1723196645221,45.0,157.54,157.51,15.871]
[1723196645431,45.0,157.54,157.5,16.3721]
[1723196645432,27.15,157.53,157.47,15.8751]
[1723196645602,72.15,157.52,157.47,15.8751]
[1723196645803,72.15,157.51,157.47,15.8751]
[1723196646053,33.4988,157.51,157.46,22.7167]
[1723196646203,45.0,157.5,157.46,22.7167]
[1723196646613,45.0,157.5,157.46,6.3505]
[1723196647123,72.15,157.5,157.47,6.3503]
[1723196647326,45.0,157.5,157.48,6.3499]
[1723196648103,41.6225,157.55,157.47,27.15]
[1723196648307,62.7195,157.55,157.51,6.3485]
[1723196648522,27.15,157.56,157.5,15.8722]
[1723196648934,27.15,157.55,157.52,6.348]
[1723196649113,6.4018,157.59,157.5,22.221]
[1723196649114,27.15,157.54,157.5,22.221]
[1723196649736,45.0,157.53,157.5,22.221]
[1723196650033,45.0,157.53,157.51,6.3487]
[1723196650432,45.0,157.53,157.5,22.2212]
[1723196651937,72.15,157.53,157.5,22.2212]
[1723196652412,72.15,157.53,157.48,6.3496]
[1723196652613,78.498,157.53,157.48,6.3496]
[1723196652913,20.0,157.52,157.49,6.3494]
[1723196653212,45.0,157.51,157.49,6.3494]
[1723196653930,72.15,157.51,157.47,22.2259]
[1723196654138,27.15,157.49,157.44,15.8786]
[1723196654341,72.15,157.48,157.44,15.8786]
[1723196654837,72.15,157.48,157.44,22.2299]
[1723196655227,72.15,157.48,157.45,6.351]
[1723196655427,72.15,157.48,157.46,6.3508]
[1723196655630,45.0,157.48,157.46,6.3508]
[1723196655819,72.15,157.48,157.44,15.8786]
[1723196656134,72.15,157.48,157.44,22.2298]
[1723196656336,72.15,157.48,157.45,6.3511]
[1723196657045,27.15,157.46,157.42,6.3522]
[1723196657335,27.15,157.43,157.37,54.4956]
[1723196657740,45.0,157.42,157.4,6.3529]
[1723196658038,45.0,157.42,157.41,6.3528]
[1723196660337,20.0,157.45,157.44,6.3516]
[1723196660544,20.0,157.45,157.43,22.231]
[1723196660833,27.15,157.47,157.43,22.231]
[1723196660834,20.0,157.46,157.43,22.231]
[1723196661233,20.0,157.47,157.44,6.3514]
[1723196661728,45.0,157.46,157.43,22.231]
[1723196663028,45.0,157.46,157.44,6.3515]
[1723196663242,45.0,157.46,157.43,22.231]
[1723196663717,72.15,157.46,157.42,6.3523]
[1723196665653,27.15,157.43,157.39,6.3533]
[1723196665860,72.15,157.42,157.39,6.3533]
[1723196666150,45.0,157.42,157.39,6.3533]
[1723196666527,73.41714906,157.42,157.37,15.8857]
[1723196666751,78.5026,157.42,157.37,22.2398]
[1723196667049,72.15,157.42,157.38,6.3539]
[1723196667257,27.15,157.41,157.37,22.2401]
[1723196667434,72.15,157.4,157.37,22.2401]
[1723196667630,27.15,157.38,157.33,15.4603]
[1723196667837,92.15,157.37,157.33,15.8899]
[1723196668056,27.15,157.36,157.33,15.8899]
[1723196668253,45.0,157.35,157.33,15.8899]
[1723196668428,45.0,157.35,157.34,6.3556]
[1723196671269,45.0,157.35,157.33,22.2458]
[1723196671473,45.0,157.35,157.31,6.3564]
[1723196671635,72.15,157.35,157.31,6.3564]
[1723196672554,72.15,157.35,157.32,6.3561]
[1723196672961,45.0,157.35,157.32,6.3561]
[1723196673168,45.0,157.35,157.34,6.3556]
[1723196673374,65.0,157.35,157.34,6.3556]
[1723196673841,65.0,157.35,157.32,22.2466]
[1723196675959,45.0,157.35,157.32,15.8905]
[1723196676142,45.0,157.35,157.33,6.356]
[1723196676458,45.0,157.35,157.32,22.2468]
[1723196676831,72.15,157.35,157.32,22.2468]
[1723196677035,45.0,157.35,157.33,6.356]
[1723196678647,45.0,157.35,157.32,22.2469]
[1723196678939,28.41714906,157.34,157.29,15.8938]
[1723196679148,45.0,157.33,157.3,6.3569]
[1723196679667,16.2867,157.39,157.3,27.15]
[1723196679844,16.2867,157.39,157.33,6.3557]
[1723196679845,27.15,157.36,157.33,6.3557]
[1723196680163,47.15,157.35,157.32,6.3563]
[1723196680346,27.15,157.34,157.31,22.2486]
[1723196680553,27.15,157.32,157.28,15.8949]
[1723196680750,27.15,157.33,157.29,6.3576]
[1723196680957,27.15,157.33,157.3,6.3572]
[1723196681270,45.0,157.32,157.31,6.3568]
[1723196681566,45.0,157.34,157.33,6.356]
[1723196681862,45.0,157.34,157.33,22.246]
[1723196686239,45.0,157.34,157.32,6.3564]
[1723196686748,72.15,157.34,157.3,15.8927]
[1723196687143,72.15,157.34,157.3,22.2496]
[1723196687346,27.15,157.33,157.3,22.2496]
[1723196687549,45.0,157.32,157.31,6.3568]
[1723196690649,27.15,157.41,157.35,15.8879]
[1723196691647,18.62,157.41,157.37,15.8855]
[1723196691955,18.62,157.42,157.39,6.3536]
[1723196692472,18.62,157.42,157.38,6.3539]
[1723196692871,18.62,157.41,157.37,22.2399]
[1723196693170,38.62,157.4,157.37,15.8855]
[1723196693467,18.62,157.39,157.34,34.509]
[1723196693772,20.0,157.4,157.34,34.509]
[1723196693773,45.0,157.38,157.34,15.889]
[1723196693974,45.0,157.39,157.35,6.3552]
[1723196694373,45.0,157.39,157.36,6.3547]
[1723196694973,45.0,157.39,157.37,6.3543]
[1723196695477,45.0,157.4,157.39,6.3536]
[1723196695649,65.0,157.4,157.39,6.3536]
[1723196696054,20.0,157.4,157.38,6.3539]
[1723196696254,27.17,157.45,157.4,15.8829]
[1723196696463,20.0,157.44,157.41,1.2703297]
[1723196696868,27.17,157.45,157.41,1.2703297]
[1723196697276,27.17,157.46,157.42,1.27030277]
[1723196697578,33.5205,157.47,157.43,1.27021042]
[1723196698603,33.5205,157.47,157.42,6.352]
[1723196699164,27.17,157.47,157.44,6.3516]
[1723196699361,27.17,157.49,157.45,7.62097456]
[1723196699569,27.17,157.48,157.45,1.27017456]
[1723196699767,6.2951,157.51,157.4,33.3177]
[1723196699768,33.5205,157.47,157.4,33.3177]
[1723196699983,33.5208,157.46,157.41,15.8816]
[1723196700158,33.5208,157.46,157.41,22.2341]
[1723196700357,27.17,157.47,157.41,15.8816]
[1723196700553,27.17,157.5,157.43,27.17]
[1723196700778,20.0,157.49,157.44,28.43989198]
[1723196700980,20.0,157.5,157.47,6.3502]
[1723196701288,6.2226,157.55,157.5,6.3491]
[1723196701289,27.17,157.54,157.5,6.3491]
[1723196701469,27.17,157.56,157.51,1.26960413]
[1723196701674,27.17,157.56,157.52,1.26945979]
[1723196701872,27.17,157.56,157.52,6.3481]
[1723196702068,27.17,157.56,157.52,7.61755992]
[1723196702398,27.17,157.56,157.51,22.22]
[1723196702772,33.5173,157.55,157.48,43.0447]
[1723196702974,33.5179,157.54,157.49,6.3495]
[1723196703173,27.17,157.53,157.49,6.3495]
[1723196703803,27.17,157.54,157.51,6.3487]
[1723196703996,45.0,157.53,157.51,6.3487]
[1723196704197,27.17,157.56,157.51,15.8717]
[1723196704401,27.17,157.57,157.53,6.3479]
[1723196704584,33.5168,157.56,157.51,22.2204]
[1723196704784,26.3471,157.55,157.51,15.8717]
[1723196705093,27.17,157.6,157.48,6.3499]
[1723196705094,33.5176,157.54,157.48,6.3499]
[1723196705481,27.17,157.54,157.5,6.3491]
[1723196705788,45.0,157.53,157.5,6.3491]
[1723196706009,33.5172,157.55,157.51,6.3487]
[1723196706010,45.0,157.54,157.51,6.3487]
[1723196706179,27.17,157.56,157.52,6.3481]
[1723196706380,20.0,157.55,157.53,6.3479]
[1723196706679,27.17,157.64,157.54,43.3971]
[1723196707001,33.514,157.63,157.58,6.3458]
[1723196707176,27.17,157.63,157.58,6.3458]
[1723196707607,27.17,157.63,157.59,6.3454]
[1723196707903,27.17,157.63,157.56,43.0364]
[1723196708102,27.17,157.64,157.59,6.3452]
[1723196708303,20.0,157.63,157.59,6.3452]
[1723196708478,22.3367,157.67,157.61,6.3444]
[1723196708479,27.17,157.66,157.61,6.3444]
[1723196708682,27.17,157.76,157.61,27.17]
[1723196708683,33.5116,157.69,157.61,27.17]
[1723196708889,33.5116,157.69,157.63,6.3439]
[1723196708890,27.17,157.68,157.63,6.3439]
[1723196709404,27.17,157.67,157.63,6.3439]
[1723196709919,33.5136,157.64,157.58,22.2098]
[1723196710104,27.17,157.63,157.59,6.3455]
[1723196710707,27.17,157.63,157.58,15.8641]
[1723196710708,27.17,157.65,157.61,6.3447]
[1723196710887,38.1878,157.72,157.61,6.3447]
[1723196710888,45.0,157.62,157.61,6.3447]
[1723196711096,20.0,157.64,157.62,6.3442]
[1723196711384,27.17,157.66,157.62,6.3442]
[1723196711794,20.0,157.65,157.62,6.3442]
[1723196712198,20.0,157.65,157.63,6.3439]
[1723196712488,20.0,157.66,157.64,6.3435]
[1723196712696,20.0,157.67,157.64,6.3435]
[1723196713012,27.17,157.69,157.66,6.3426]
[1723196713183,7.1585295,157.71,157.64,28.43830753]
[1723196713184,27.9877295,157.71,157.64,28.43830753]
[1723196713384,27.9877295,157.71,157.62,15.2197]
[1723196713385,0.8177295,157.71,157.69,6.3414]
[1723196714283,0.8177295,157.71,157.68,15.8541]
[1723196714284,0.8177295,157.71,157.7,7.60915528]
[1723196714485,0.8177295,157.71,157.7,6.3411]
[1723196714897,0.8177295,157.71,157.68,22.1958]
[1723196715109,0.8177295,157.71,157.68,15.8541]
[1723196715311,0.8177295,157.71,157.68,22.1956]
[1723196715511,0.8177295,157.71,157.68,15.8541]
[1723196715716,0.8177295,157.71,157.68,22.1959]
[1723196716093,0.8177295,157.71,157.68,15.8541]
[1723196716714,45.8177295,157.71,157.68,15.8541]
[1723196716915,0.8177295,157.71,157.69,16.5764]
[1723196717118,0.8177295,157.71,157.69,17.8442817]
[1723196717462,0.8177295,157.71,157.7,6.3411]
[1723196717632,0.8177295,157.71,157.7,7.6089809]
[1723196717955,0.8177295,157.71,157.7,6.3411]
[1723196720243,0.8177295,157.71,157.68,15.8541]
[1723196720657,0.8177295,157.71,157.7,6.3411]
[1723196722230,0.8177295,157.71,157.65,31.1228]
[1723196722645,0.8177295,157.71,157.68,6.3417]
[1723196722837,0.8177295,157.71,157.69,6.3415]
[1723196723158,0.8177295,157.71,157.69,15.853]
[1723196723444,0.8177295,157.71,157.69,22.1945]
[1723196724152,0.8177295,157.71,157.7,6.3411]
[1723196724319,0.8177295,157.71,157.69,15.853]
[1723196724721,0.8177295,157.71,157.63,12.6494]
[1723196724722,34.78,157.7,157.63,12.6494]
[1723196724953,6.3422,157.68,157.63,6.3436]
[1723196725330,45.0,157.67,157.63,15.8595]
[1723196725650,45.0,157.67,157.61,50.0943]
[1723196725823,45.0,157.67,157.66,6.3427]
[1723196726321,0.8177295,157.71,157.7,6.3411]
[1723196726539,0.8177295,157.71,157.69,22.1946]
[1723196726741,7.1585295,157.71,157.63,34.78]
[1723196726940,7.1585295,157.71,157.66,15.8565]
[1723196726941,0.8177295,157.71,157.66,15.8565]
[1723196727127,0.8177295,157.71,157.68,6.3419]
[1723196727442,0.8177295,157.71,157.68,15.854]
[1723196727636,0.8177295,157.71,157.65,15.8574]
[1723196727838,0.8177295,157.71,157.67,6.3422]
[1723196728149,0.8177295,157.71,157.68,6.3419]
[1723196728343,0.8177295,157.71,157.7,6.3411]
[1723196734964,0.8177295,157.71,157.7,22.7817]
[1723196735168,15.4038,157.81,157.76,15.8463]
[1723196735463,15.6761,157.85,157.8,6.3367]
[1723196735838,42.6861,157.85,157.81,6.3366]
[1723196736141,49.0214,157.85,157.8,22.179]
[1723196736339,27.01,157.84,157.8,22.179]
[1723196736540,49.0214,157.85,157.8,22.179]
[1723196736959,15.6761,157.85,157.8,15.842]
[1723196737345,42.6861,157.85,157.8,22.1788]
[1723196737541,27.01,157.84,157.8,22.1788]
[1723196737746,15.6761,157.85,157.8,22.1788]
[1723196737954,34.73,157.84,157.77,15.8455]
[1723196738150,34.73,157.84,157.78,6.3376]
[1723196738353,20.0,157.83,157.81,6.3366]
[1723196738555,45.0,157.82,157.81,6.3366]
[1723196739839,0.8177295,157.87,157.82,6.3361]
[1723196740063,0.8177295,157.87,157.83,1.26642779]
[1723196740366,0.8177295,157.87,157.84,6.3354]
[1723196740869,0.8177295,157.87,157.83,7.60222779]
[1723196741445,0.8177295,157.87,157.84,6.3353]
[1723196741650,0.8177295,157.87,157.85,7.60201337]
[1723196742561,0.8177295,157.87,157.86,6.3347]
[1723196743692,0.8177295,157.87,157.84,15.8378]
[1723196743693,0.8177295,157.87,157.85,6.3351]
[1723196744359,0.8177295,157.87,157.84,15.8378]
[1723196744563,45.8177295,157.87,157.83,6.3358]
[1723196744771,34.73,157.86,157.81,15.8415]
[1723196744951,34.73,157.84,157.79,6.3374]
[1723196745273,45.0,157.83,157.8,17.10923424]
[1723196745570,45.0,157.83,157.82,6.3363]
[1723196747155,45.0,157.83,157.8,15.842]
[1723196747363,45.0,157.83,157.81,6.3366]
[1723196747761,45.0,157.83,157.8,22.179]
[1723196747980,45.0,157.84,157.8,22.179]
[1723196748180,79.73,157.84,157.8,15.842]
[1723196748876,79.73,157.84,157.8,22.1789]
[1723196750562,79.73,157.84,157.8,15.842]
[1723196750563,86.0657,157.84,157.8,15.842]
[1723196751885,86.0657,157.84,157.76,6.3383]
[1723196751886,41.0666,157.82,157.76,6.3383]
[1723196752054,34.73,157.8,157.77,6.3382]
[1723196752386,45.0,157.79,157.77,6.3382]
[1723196752583,45.0,157.79,157.72,38.158]
[1723196752584,34.73,157.78,157.72,6.4577]
[1723196752759,34.73,157.78,157.68,40.7951]
[1723196752961,45.0,157.79,157.7,34.73]
[1723196753265,45.0,157.79,157.71,1.26748156]
[1723196753659,45.0,157.79,157.77,6.3382]
[1723196754160,45.0,157.79,157.76,15.8462]
[1723196754161,45.0,157.79,157.78,6.3379]
[1723196754556,45.0,157.79,157.76,15.8462]
[1723196754778,34.73,157.8,157.76,15.8462]
[1723196754955,34.73,157.8,157.69,32.97453293]
[1723196755159,66.6368,157.84,157.69,31.707]
[1723196755160,34.73,157.78,157.69,31.707]
[1723196755474,34.73,157.78,157.7,1.26769593]
[1723196755679,34.73,157.78,157.71,1.26758777]
[1723196755979,34.73,157.78,157.75,15.8469]
[1723196756775,45.0,157.77,157.75,15.8469]
[1723196756977,45.0,157.77,157.74,6.3391]
[1723196757181,45.0,157.77,157.74,15.8482]
[1723196757988,45.0,157.77,157.76,6.3387]
[1723196760468,34.73,157.8,157.78,6.3376]
[1723196761179,34.73,157.8,157.79,6.3375]
[1723196761691,34.73,157.8,157.78,6.3378]
[1723196761692,27.03,157.8,157.78,6.3378]
[1723196762090,27.03,157.81,157.79,6.3375]
[1723196762590,27.03,157.82,157.8,6.3371]
[1723196762788,27.03,157.82,157.8,7.6043906]
[1723196763399,27.03,157.83,157.81,6.3367]
[1723196763600,27.03,157.86,157.82,1.2672198]
[1723196763887,27.8477295,157.87,157.83,6.3358]
[1723196764282,27.8477295,157.87,157.84,1.26697366]
[1723196764283,0.8177295,157.87,157.84,1.26697366]
[1723196764594,27.8477295,157.87,157.8,27.03]
[1723196764792,27.03,157.86,157.79,27.03]
[1723196765091,27.03,157.86,157.83,6.3358]
[1723196765292,27.03,157.85,157.83,6.3358]
[1723196765997,27.8477295,157.87,157.85,15.8378]
[1723196766298,0.8177295,157.87,157.86,6.3347]
[1723196766991,0.8177295,157.87,157.85,15.8378]
[1723196769185,0.8177295,157.87,157.86,6.3347]
[1723196769888,0.8177295,157.87,157.86,7.60112641]
[1723196770391,50.221,157.97,157.94,6.3313]
[1723196770583,50.221,157.97,157.92,1.26615936]
[1723196770779,50.221,157.97,157.93,1.26614273]
[1723196771085,50.221,157.97,157.91,15.8315]
[1723196771266,34.69,157.95,157.91,15.8315]
[1723196771466,6.3307,157.96,157.88,15.8347]
[1723196771467,34.69,157.93,157.88,15.8347]
[1723196771674,34.69,157.93,157.88,17.10130202]
[1723196771891,34.69,157.93,157.9,15.832]
[1723196772185,34.69,157.95,157.92,6.3322]
[1723196772571,34.69,157.95,157.93,6.3316]
[1723196772773,20.0,157.96,157.93,6.3316]
[1723196773280,16.5225,158.01,157.94,15.8278]
[1723196773482,34.69,157.99,157.94,15.8278]
[1723196773714,34.69,157.95,157.91,15.8316]
[1723196774505,34.69,157.97,157.94,6.3315]
[1723196774668,45.0,157.96,157.95,6.3311]
[1723196775073,34.69,157.99,157.95,6.3311]
[1723196775275,34.69,157.97,157.94,6.3314]
[1723196775478,34.69,157.97,157.93,22.1606]
[1723196775689,34.69,157.97,157.93,15.8288]
[1723196776172,34.69,157.97,157.93,22.1606]
[1723196776390,45.0,157.96,157.95,6.3311]
[1723196776595,34.69,157.99,157.93,15.8288]
[1723196776774,20.0,157.98,157.93,15.8288]
[1723196777181,20.0,157.98,157.95,6.331]
[1723196777584,20.0,157.98,157.95,15.8268]
[1723196777779,34.69,157.99,157.97,6.3303]
[1723196778597,34.69,157.99,157.95,15.8268]
[1723196778795,51.2125,158.01,157.95,15.8268]
[1723196779097,20.0,158.0,157.95,15.8268]
[1723196779800,34.69,157.99,157.9,17.16220878]
[1723196780182,34.69,157.99,157.93,22.1606]
[1723196780183,34.69,157.97,157.93,22.1606]
[1723196780480,34.69,157.97,157.94,6.3313]
[1723196780675,45.0,157.96,157.9,15.8964]
[1723196780880,34.69,157.95,157.91,6.3323]
[1723196781178,34.69,157.93,157.86,15.8766]
[1723196781379,34.69,157.93,157.89,15.833]
[1723196781578,34.69,157.95,157.91,15.8308]
[1723196781774,45.0,157.94,157.91,15.8308]
[1723196781996,45.0,157.94,157.93,6.3319]
[1723196785310,26.3291,158.0,157.96,6.3307]
[1723196785311,34.69,157.99,157.96,6.3307]
[1723196785500,34.69,157.99,157.97,6.3301]
[1723196785880,34.69,157.99,157.92,15.8305]
[1723196786082,18.10484629,158.01,157.92,15.8305]
[1723196786083,41.0203,157.97,157.92,15.8305]
[1723196786411,34.69,157.97,157.92,15.8305]
[1723196786711,51.2125,158.01,157.96,6.3306]
[1723196786887,34.69,157.99,157.97,15.8252]
[1723196787278,34.69,157.99,157.97,22.1554]
[1723196787483,20.0,158.0,157.97,15.8252]
[1723196787685,20.0,158.0,157.98,6.3299]
[1723196788218,20.0,158.0,157.97,22.1554]
[1723196788794,34.69,157.99,157.95,6.3307]
[1723196789188,34.69,157.99,157.97,6.3302]
[1723196789688,45.0,157.98,157.96,6.3306]
[1723196789895,45.0,157.98,157.97,6.3303]
[1723196791317,45.0,157.98,157.96,6.3306]
[1723196791494,45.0,157.99,157.96,6.3306]
[1723196791694,26.96,157.98,157.94,22.1596]
[1723196792009,45.0,157.97,157.94,22.1596]
[1723196792821,45.0,157.97,157.94,15.8285]
[1723196793926,45.0,157.97,157.96,6.3307]
[1723196797113,45.0,157.97,157.94,15.8285]
[1723196797329,26.96,157.96,157.94,15.8285]
[1723196797610,45.0,157.95,157.94,22.16]
[1723196799220,26.96,158.0,157.98,6.3299]
[1723196799519,7.1456295,158.03,157.98,6.3299]
[1723196799821,7.1456295,158.03,157.97,6.3302]
[1723196799822,6.3284,158.02,157.97,6.3302]
[1723196800201,6.3287,158.01,157.96,22.1568]
[1723196800519,26.96,157.98,157.96,22.1568]
[1723196800698,45.0,157.97,157.96,15.8262]
[1723196801013,45.0,157.97,157.95,6.331]
[1723196801014,71.96,157.97,157.93,47.4878]
[1723196801216,26.96,157.96,157.93,15.8293]
[1723196801408,71.96,157.95,157.93,15.8293]
[1723196801608,26.96,157.96,157.94,6.3314]
[1723196801917,45.0,157.95,157.94,6.3314]
[1723196803103,71.96,157.95,157.94,6.3314]
[1723196803418,45.0,157.95,157.94,6.3314]
[1723196804440,71.96,157.95,157.94,6.3314]
[1723196805095,71.96,157.95,157.93,15.8293]
[1723196805298,26.96,157.94,157.91,6.3326]
[1723196805499,26.96,157.92,157.89,6.3334]
[1723196805727,26.96,157.9,157.87,15.8356]
[1723196805913,45.0,157.89,157.87,15.8356]
[1723196806220,26.96,157.88,157.83,15.839]
[1723196806421,45.0,157.89,157.83,15.839]
[1723196806422,26.96,157.87,157.83,15.839]
[1723196806609,45.0,157.86,157.85,6.3351]
[1723196812109,26.96,157.93,157.89,15.8331]
[1723196812519,26.96,157.94,157.89,15.8331]
[1723196812926,26.96,157.97,157.94,6.3311]
[1723196813512,26.96,157.97,157.94,22.1598]
[1723196813818,26.96,157.96,157.94,22.1598]
[1723196815027,45.0,157.95,157.94,22.1598]
[1723196815230,26.96,157.97,157.95,6.3311]
[1723196815431,26.96,157.97,157.95,7.59699814]
[1723196816635,45.0,157.96,157.95,7.59699814]
[1723196816934,45.0,157.96,157.95,6.3311]
[1723196817511,26.96,157.99,157.97,6.33]
[1723196818512,7.1458295,158.03,157.93,1.2658925]
[1723196818513,26.96,158.01,157.98,15.8242]
[1723196818707,26.96,158.0,157.98,15.8242]
[1723196819516,26.96,158.0,157.99,6.3295]
[1723196819829,26.96,158.01,158.0,6.3291]
[1723196821512,71.96,158.01,158.0,6.3291]
[1723196821914,45.0,158.01,158.0,6.3291]
[1723196822210,27.7777295,158.03,158.02,6.3283]
[1723196822719,27.7777295,158.03,158.01,6.3286]
[1723196823515,45.0,158.02,158.01,6.3286]
[1723196824216,71.96,158.02,158.01,6.3286]
[1723196824424,71.96,158.02,158.0,15.822]
[1723196824622,26.96,158.01,158.0,15.822]
[1723196824926,71.96,158.01,158.0,15.822]
[1723196825165,78.2888,158.01,157.97,15.8257]
[1723196825317,26.96,157.98,157.95,6.331]
[1723196825641,26.96,157.96,157.95,6.331]
[1723196826017,71.96,157.96,157.95,6.331]
[1723196826365,71.96,157.96,157.94,22.1599]
[1723196826661,71.96,157.95,157.94,15.8285]
[1723196827016,71.96,157.95,157.94,22.16]
[1723196827414,71.96,157.95,157.91,15.8315]
[1723196827644,45.0,157.95,157.91,15.8315]
[1723196827848,26.96,157.92,157.89,6.3331]
[1723196828029,26.96,157.9,157.89,6.3331]
[1723196828423,71.96,157.9,157.89,6.3331]
[1723196829011,71.96,157.9,157.85,15.8375]
[1723196829214,26.96,157.86,157.85,22.1722]
[1723196829442,26.96,157.87,157.86,6.3347]
[1723196829626,45.0,157.87,157.86,6.3347]
[1723196829962,71.96,157.87,157.86,6.3347]
[1723196830119,71.96,157.87,157.85,15.8375]
[1723196830454,26.96,157.92,157.85,22.1726]
[1723196830455,71.96,157.86,157.85,22.1726]
[1723196831632,71.96,157.86,157.85,15.8375]
[1723196832327,71.96,157.86,157.85,22.1726]
[1723196833019,26.96,157.86,157.85,22.1726]
[1723196833219,26.96,157.87,157.86,6.3347]
[1723196834254,71.96,157.87,157.86,6.3347]
[1723196835315,26.96,157.88,157.87,6.3343]
[1723196835537,42.00020381,158.09,157.92,6.3323]
[1723196835538,6.0954,157.96,157.92,6.3323]
[1723196835714,6.0954,157.96,157.9,15.8319]
[1723196836036,26.96,157.91,157.9,15.8319]
[1723196836342,26.96,157.91,157.9,22.165]
[1723196839031,26.96,157.92,157.91,6.3327]
[1723196839236,71.96,157.92,157.91,6.3327]
[1723196841134,98.92,157.92,157.88,6.3335]
[1723196841344,98.92,157.92,157.87,22.1696]
[1723196841345,26.96,157.89,157.87,22.1696]
[1723196841528,45.0,157.88,157.87,15.8354]
[1723196842045,45.0,157.88,157.85,6.335]
[1723196842252,51.3337,157.89,157.84,15.8384]
[1723196842433,67.8674,157.89,157.84,22.1737]
[1723196842738,61.5337,157.89,157.85,6.3351]
[1723196842944,26.96,157.86,157.85,6.3351]
[1723196843146,71.96,157.86,157.85,6.3351]
[1723196847452,71.96,157.85,157.84,22.1739]
[1723196856702,26.96,157.92,157.88,6.3339]
[1723196857703,20.0,157.91,157.88,6.3339]
[1723196857992,26.96,157.89,157.88,6.3339]
[1723196858291,26.96,157.9,157.89,22.1668]
[1723196858477,12.5926,157.97,157.92,6.332]
[1723196858673,26.96,157.93,157.91,15.8312]
[1723196858888,26.96,157.92,157.91,15.8312]
[1723196859191,26.96,157.92,157.9,6.333]
[1723196859379,26.96,157.91,157.88,15.8342]
[1723196859576,26.96,157.89,157.88,15.8342]
[1723196859879,26.96,157.89,157.88,22.1681]
[1723196860282,26.96,157.9,157.89,22.1673]
[1723196860603,26.96,157.9,157.89,23.43375067]
[1723196860604,45.0,157.9,157.89,23.43375067]
[1723196860762,26.96,157.92,157.91,6.3327]
[1723196860970,26.96,157.93,157.92,22.1625]
[1723196861670,26.96,157.93,157.9,1.26642289]
[1723196861671,26.96,157.96,157.95,6.3311]
[1723196863282,26.96,157.97,157.96,6.3305]
[1723196863897,26.96,157.98,157.97,22.1551]
[1723196865188,71.96,157.98,157.97,22.1551]
[1723196865407,71.96,157.98,157.96,6.3306]
[1723196865610,71.96,157.97,157.95,6.331]
[1723196865901,26.96,157.96,157.95,6.331]
[1723196866078,71.96,157.96,157.95,6.331]
[1723196868345,45.0,157.96,157.95,6.331]
[1723196869134,26.96,157.99,157.97,15.8257]
[1723196869438,26.96,158.0,157.98,1.26585876]
[1723196869611,26.96,158.0,157.99,22.1527]
[1723196870232,26.96,158.01,158.0,6.3291]
[1723196870407,26.96,158.01,158.0,7.59480299]
[1723196871100,26.96,158.02,158.01,6.3287]